fUST/lending_fUST_20250921
["ID","MTS","AMOUNT","RATE_DAILY","PERIOD"]
[386714354,1758466263251,-500.0,0.00021265,2]
[386714355,1758466263260,-500.0,0.00021265,2]
[386714356,1758466263270,-500.0,0.00021265,2]
[386714357,1758466263280,-500.0,0.00021265,2]
[386714358,1758466263290,-500.0,0.00021265,2]
[386714359,1758466263299,-500.0,0.00021265,2]
[386714360,1758466263309,-504.12983223,0.00021278,2]
[386714361,1758466263318,-2519.0,0.00021282,2]
[386714362,1758466263328,-500.0,0.00021286,2]
[386714363,1758466263338,-500.0,0.00021286,2]
[386714364,1758466263349,-500.0,0.00021286,2]
[386714365,1758466263358,-500.0,0.00021286,2]
[386714366,1758466263368,-500.0,0.00021286,2]
[386714368,1758466263378,-500.0,0.00021286,2]
[386714370,1758466263388,-500.0,0.00021286,2]
[386714371,1758466263398,-500.0,0.00021286,2]
[386714373,1758466263409,-500.0,0.00021286,2]
[386714375,1758466263419,-1000.0,0.00021333,2]
[386714377,1758466263429,-1000.0,0.00021333,2]
[386714380,1758466263439,-151.0,0.00021365,2]
[386714381,1758466263449,-151.0,0.00021365,2]
[386714383,1758466263459,-151.0,0.00021365,2]
[386714385,1758466263469,-151.0,0.00021365,2]
[386714387,1758466263479,-151.0,0.00021365,2]
[386714389,1758466263489,-151.0,0.00021365,2]
[386714391,1758466263498,-151.0,0.00021365,2]
[386714393,1758466263508,-500.0,0.00021365,2]
[386714395,1758466263517,-500.0,0.00021365,2]
[386714397,1758466263527,-151.0,0.00021365,2]
[386714399,1758466263537,-500.0,0.00021365,2]
[386714401,1758466263547,-850.0,0.00021365,2]
[386714403,1758466263557,-151.0,0.00021365,2]
[386714405,1758466263567,-151.0,0.00021365,2]
[386714407,1758466263579,-151.0,0.00021365,2]
[386714409,1758466263589,-151.0,0.00021365,2]
[386714411,1758466263599,-151.0,0.00021365,2]
[386714413,1758466263609,-500.0,0.00021365,2]
[386714415,1758466263618,-1500.0,0.00021368,2]
[386714417,1758466263628,-500.0,0.00021368,2]
[386714419,1758466263638,-1501.28193224,0.00021368,2]
[386714421,1758466263648,-1239.54383619,0.00021369,2]
[386714423,1758466263657,-480.0,0.00021369,2]
[386714425,1758466263667,-560.08372906,0.00021369,2]
[386714427,1758466263677,-480.0,0.00021369,2]
[386714429,1758466263686,-480.0,0.00021369,2]
[386714431,1758466263696,-166.0,0.00021369,2]
[386714433,1758466263706,-173.59494933,0.00021369,2]
[386714435,1758466263717,-480.0,0.00021369,2]
[386714437,1758466263727,-480.0,0.00021369,2]
[386714439,1758466263737,-294.45950432,0.00021369,2]
[386714441,1758466263747,-480.0,0.00021369,2]
[386714443,1758466263757,-480.0,0.00021369,2]
[386714445,1758466263767,-480.0,0.00021369,2]
[386714447,1758466263780,-480.0,0.00021369,2]
[386714449,1758466263790,-480.0,0.00021369,2]
[386714452,1758466263800,-480.0,0.00021369,2]
[386714453,1758466263811,-480.0,0.00021369,2]
[386714455,1758466263820,-480.0,0.00021369,2]
[386714458,1758466263830,-480.0,0.00021369,2]
[386714459,1758466263841,-480.0,0.00021369,2]
[386714460,1758466263850,-480.0,0.00021369,2]
[386714462,1758466263860,-480.0,0.00021369,2]
[386714464,1758466263870,-686.79,0.00021369,2]
[386714466,1758466263882,-480.0,0.00021369,2]
[386714467,1758466263891,-166.0,0.00021369,2]
[386714469,1758466263900,-480.0,0.00021369,2]
[386714471,1758466263910,-328.0,0.00021369,2]
[386714473,1758466263925,-328.0,0.00021369,2]
[386714475,1758466263935,-328.0,0.00021369,2]
[386714477,1758466263946,-328.0,0.00021369,2]
[386714479,1758466263956,-328.0,0.00021369,2]
[386714481,1758466263966,-328.0,0.00021369,2]
[386714482,1758466263975,-336.88397745,0.00021369,2]
[386714484,1758466263985,-171.0,0.00021369,2]
[386714486,1758466263994,-10449.81,0.00021369,2]
[386714488,1758466264004,-480.0,0.00021369,2]
[386714490,1758466264014,-480.0,0.00021369,2]
[386714492,1758466264023,-480.0,0.00021369,2]
[386714494,1758466264036,-480.0,0.00021369,2]
[386714496,1758466264046,-480.0,0.00021369,2]
[386714498,1758466264055,-480.0,0.00021369,2]
[386714500,1758466264065,-647.89,0.00021369,2]
[386714501,1758466264075,-480.0,0.00021369,2]
[386714503,1758466264085,-1483.09,0.00021369,2]
[386714505,1758466264094,-367.54,0.00021369,2]
[386714507,1758466264104,-338.67,0.00021369,2]
[386714509,1758466264113,-480.0,0.00021369,2]
[386714511,1758466264124,-480.0,0.00021369,2]
[386714513,1758466264134,-480.0,0.00021369,2]
[386714515,1758466264144,-480.0,0.00021369,2]
[386714517,1758466264154,-2444.72,0.00021369,2]
[386714519,1758466264164,-480.0,0.00021369,2]
[386714521,1758466264174,-638.57,0.00021369,2]
[386714523,1758466264184,-480.0,0.00021369,2]
[386714524,1758466264194,-1091.24,0.00021369,2]
[386714526,1758466264204,-480.0,0.00021369,2]
[386714528,1758466264214,-701.35,0.00021369,2]
[386714530,1758466264224,-480.0,0.00021369,2]
[386714532,1758466264234,-480.0,0.00021369,2]
[386714534,1758466264244,-480.0,0.00021369,2]
[386714535,1758466264254,-480.0,0.00021369,2]
[386714537,1758466264264,-1064.36,0.00021369,2]
[386714539,1758466264273,-1229.11,0.00021369,2]
[386714541,1758466264283,-602.2,0.00021369,2]
[386714543,1758466264294,-480.0,0.00021369,2]
[386714545,1758466264304,-480.0,0.00021369,2]
[386714547,1758466264314,-480.0,0.00021369,2]
[386714549,1758466264324,-1278.12,0.00021369,2]
[386714551,1758466264333,-1117.47,0.00021369,2]
[386714552,1758466264342,-480.0,0.00021369,2]
[386714554,1758466264352,-480.0,0.00021369,2]
[386714556,1758466264361,-480.0,0.00021369,2]
[386714558,1758466264371,-480.0,0.00021369,2]
[386714560,1758466264381,-480.0,0.00021369,2]
[386714570,1758466264484,-1075.36,0.00021369,2]
[386714572,1758466264496,-480.51,0.00021369,2]
[386714574,1758466264506,-238.79963414,0.00021369,2]
[386714589,1758466264678,-241.20036586,0.00021369,2]
[386714591,1758466264688,-480.0,0.00021369,2]
[386714593,1758466264697,-480.0,0.00021369,2]
[386714595,1758466264707,-480.0,0.00021369,2]
[386714597,1758466264717,-480.0,0.00021369,2]
[386714598,1758466264727,-565.87,0.00021369,2]
[386714600,1758466264739,-486.79,0.00021369,2]
[386714602,1758466264749,-746.0,0.00021369,2]
[386714604,1758466264758,-820.42,0.00021369,2]
[386714606,1758466264768,-702.43700046,0.00021369,2]
[386714628,1758466265137,-500.0,0.0001907,2]
[386714629,1758466265147,-500.0,0.0001907,2]
[386714630,1758466265157,-500.0,0.0001907,2]
[386714631,1758466265167,-500.0,0.0001907,2]
[386714632,1758466265176,-500.0,0.0001907,2]
[386714633,1758466265186,-500.0,0.0001907,2]
[386714634,1758466265196,-500.0,0.0001907,2]
[386714635,1758466265206,-500.0,0.0001907,2]
[386714636,1758466265216,-480.0,0.00019178,2]
[386714637,1758466265225,-480.0,0.00019178,2]
[386714638,1758466265235,-480.0,0.00019178,2]
[386714639,1758466265245,-480.0,0.00019452,2]
[386714640,1758466265254,-480.0,0.00019452,2]
[386714641,1758466265264,-160.475979,0.00019452,2]
[386714642,1758466265273,-196.934481,0.00019452,2]
[386714643,1758466265283,-160.475979,0.00019452,2]
[386714644,1758466265293,-480.0,0.00019726,2]
[386714645,1758466265302,-480.0,0.00019726,2]
[386714646,1758466265311,-151.0,0.00019999,2]
[386714647,1758466265320,-480.0,0.0002,2]
[386714648,1758466265330,-151.0,0.0002,2]
[386714649,1758466265340,-480.0,0.0002,2]
[386714650,1758466265350,-480.0,0.00020273,2]
[386714651,1758466265359,-480.0,0.00020547,2]
[386714652,1758466265368,-480.0,0.00020821,2]
[386714653,1758466265377,-480.0,0.00021095,2]
[386714654,1758466265387,-3501.01299954,0.00021369,2]
[386714655,1758466265397,-480.0,0.00021369,2]
[386714656,1758466265406,-480.0,0.00021369,2]
[386714657,1758466265415,-480.0,0.00021369,2]
[386714658,1758466265425,-480.0,0.00021369,2]
[386714659,1758466265434,-851.58,0.00021369,2]
[386714660,1758466265444,-480.0,0.00021369,2]
[386714661,1758466265455,-480.0,0.00021369,2]
[386714662,1758466265464,-480.0,0.00021369,2]
[386714663,1758466265474,-480.0,0.00021369,2]
[386714664,1758466265483,-480.0,0.00021369,2]
[386714665,1758466265493,-537.74,0.00021369,2]
[386714666,1758466265502,-2698.71,0.00021369,2]
[386714667,1758466265512,-1022.71,0.00021369,2]
[386714668,1758466265522,-833.12,0.00021369,2]
[386714669,1758466265531,-480.0,0.00021369,2]
[386714670,1758466265541,-501.39005476,0.00021369,2]
[386714671,1758466265550,-480.0,0.00021369,2]
[386714672,1758466265560,-522.45435756,0.00021369,2]
[386714673,1758466265569,-764.67,0.00021369,2]
[386714674,1758466265579,-480.0,0.00021369,2]
[386714675,1758466265588,-1175.92,0.00021369,2]
[386714676,1758466265598,-480.0,0.00021369,2]
[386714677,1758466265607,-480.0,0.00021369,2]
[386714678,1758466265616,-480.0,0.00021369,2]
[386714679,1758466265626,-480.0,0.00021369,2]
[386714680,1758466265636,-1433.61,0.00021369,2]
[386714681,1758466265646,-500.0,0.00021374,2]
[386714682,1758466265656,-500.47135549,0.00021374,2]
[386714683,1758466265666,-500.0,0.00021374,2]
[386714684,1758466265675,-168.0,0.00021442,2]
[386714685,1758466265684,-12113.49749778,0.00021472,2]
[386714686,1758466265694,-356.0,0.00021527,2]
[386714687,1758466265703,-160.0,0.00021527,4]
[386714688,1758466265714,-500.0,0.00021538,2]
[386714689,1758466265723,-460.0,0.00021548,2]
[386714690,1758466265733,-509.51140269,0.00021565,2]
[386714691,1758466265743,-4239.0,0.00021572,2]
[386714692,1758466265752,-992.345,0.00021572,2]
[386714693,1758466265762,-634.0,0.00021572,2]
[386714694,1758466265771,-2158.0,0.00021572,2]
[386714695,1758466265781,-250.0,0.00021572,2]
[386714696,1758466265791,-500.0,0.00021627,2]
[386714697,1758466265800,-151.0,0.00021639,2]
[386714698,1758466265809,-151.0,0.00021639,2]
[386714699,1758466265820,-151.0,0.00021639,2]
[386714700,1758466265830,-500.0,0.00021639,2]
[386714701,1758466265840,-500.0,0.00021639,2]
[386714702,1758466265849,-167.04559765,0.00021639,2]
[386714703,1758466265859,-500.0,0.00021639,2]
[386714705,1758466265869,-850.0,0.00021639,2]
[386714706,1758466265878,-151.0,0.00021639,2]
[386714707,1758466265888,-151.0,0.00021639,2]
[386714709,1758466265897,-151.0,0.00021639,2]
[386714711,1758466265907,-151.0,0.00021639,2]
[386714713,1758466265917,-500.0,0.00021639,2]
[386714715,1758466265927,-480.0,0.00021643,2]
[386714717,1758466265936,-480.0,0.00021643,2]
[386714718,1758466265946,-480.0,0.00021643,2]
[386714720,1758466265955,-480.0,0.00021643,2]
[386714722,1758466265964,-480.0,0.00021643,2]
[386714723,1758466265974,-480.0,0.00021643,2]
[386714724,1758466265983,-210.22,0.00021643,2]
[386714725,1758466265993,-480.0,0.00021643,2]
[386714726,1758466266002,-480.0,0.00021643,2]
[386714727,1758466266012,-480.0,0.00021643,2]
[386714728,1758466266022,-480.0,0.00021643,2]
[386714729,1758466266032,-480.0,0.00021643,2]
[386714730,1758466266046,-480.0,0.00021643,2]
[386714731,1758466266055,-480.0,0.00021643,2]
[386714732,1758466266065,-686.79,0.00021643,2]
[386714733,1758466266074,-480.0,0.00021643,2]
[386714734,1758466266086,-513.03,0.00021643,2]
[386714735,1758466266095,-10449.81,0.00021643,2]
[386714736,1758466266105,-480.0,0.00021643,2]
[386714737,1758466266116,-480.0,0.00021643,2]
[386714738,1758466266125,-480.0,0.00021643,2]
[386714739,1758466266135,-480.0,0.00021643,2]
[386714740,1758466266144,-480.0,0.00021643,2]
[386714741,1758466266154,-647.89,0.00021643,2]
[386714742,1758466266255,-480.0,0.00021643,2]
[386714743,1758466266267,-1483.09,0.00021643,2]
[386714744,1758466266277,-480.0,0.00021643,2]
[386714745,1758466266286,-480.0,0.00021643,2]
[386714746,1758466266295,-480.0,0.00021643,2]
[386714747,1758466266305,-480.0,0.00021643,2]
[386714748,1758466266314,-2444.72,0.00021643,2]
[386714749,1758466266324,-480.0,0.00021643,2]
[386714750,1758466266333,-638.57,0.00021643,2]
[386714751,1758466266343,-446.04538876,0.00021643,2]
[386714752,1758466266352,-1091.24,0.00021643,2]
[386714753,1758466266362,-701.35,0.00021643,2]
[386714754,1758466266371,-480.0,0.00021643,2]
[386714755,1758466266380,-480.0,0.00021643,2]
[386714756,1758466266389,-480.0,0.00021643,2]
[386714757,1758466266399,-215.29778392,0.00021643,2]
[386714758,1758466266408,-1064.36,0.00021643,2]
[386714759,1758466266418,-1229.11,0.00021643,2]
[386714760,1758466266427,-530.73459068,0.00021643,2]
[386714761,1758466266437,-602.2,0.00021643,2]
[386714762,1758466266446,-480.0,0.00021643,2]
[386714763,1758466266456,-480.0,0.00021643,2]
[386714764,1758466266466,-1278.12,0.00021643,2]
[386714765,1758466266476,-1117.47,0.00021643,2]
[386714766,1758466266486,-480.0,0.00021643,2]
[386714767,1758466266495,-480.0,0.00021643,2]
[386714768,1758466266505,-480.0,0.00021643,2]
[386714769,1758466266514,-480.0,0.00021643,2]
[386714770,1758466266524,-480.0,0.00021643,2]
[386714771,1758466266533,-1075.36,0.00021643,2]
[386714772,1758466266543,-480.51,0.00021643,2]
[386714773,1758466266552,-480.0,0.00021643,2]
[386714774,1758466266562,-480.0,0.00021643,2]
[386714775,1758466266571,-480.0,0.00021643,2]
[386714776,1758466266581,-480.0,0.00021643,2]
[386714777,1758466266590,-480.0,0.00021643,2]
[386714778,1758466266599,-565.87,0.00021643,2]
[386714779,1758466266609,-486.79,0.00021643,2]
[386714780,1758466266618,-820.42,0.00021643,2]
[386714781,1758466266628,-746.0,0.00021643,2]
[386714782,1758466266637,-4203.45,0.00021643,2]
[386714783,1758466266647,-480.0,0.00021643,2]
[386714784,1758466266656,-480.0,0.00021643,2]
[386714785,1758466266665,-480.0,0.00021643,2]
[386714786,1758466266674,-480.0,0.00021643,2]
[386714787,1758466266684,-851.58,0.00021643,2]
[386714788,1758466266693,-480.0,0.00021643,2]
[386714789,1758466266704,-480.0,0.00021643,2]
[386714790,1758466266714,-480.0,0.00021643,2]
[386714791,1758466266724,-480.0,0.00021643,2]
[386714792,1758466266734,-537.74,0.00021643,2]
[386714793,1758466266743,-2698.71,0.00021643,2]
[386714794,1758466266753,-1022.71,0.00021643,2]
[386714795,1758466266762,-833.12,0.00021643,2]
[386714796,1758466266772,-480.0,0.00021643,2]
[386714797,1758466266782,-480.0,0.00021643,2]
[386714798,1758466266791,-764.67,0.00021643,2]
[386714799,1758466266801,-1175.92,0.00021643,2]
[386714800,1758466266810,-480.0,0.00021643,2]
[386714801,1758466266820,-480.0,0.00021643,2]
[386714802,1758466266829,-480.0,0.00021643,2]
[386714803,1758466266839,-480.0,0.00021643,2]
[386714804,1758466266848,-1433.61,0.00021643,2]
[386714805,1758466266857,-500.0,0.0002165,2]
[386714806,1758466266867,-500.0,0.0002165,2]
[386714807,1758466266876,-165.64827802,0.0002165,2]
[386714808,1758466266886,-500.0,0.0002165,2]
[386714809,1758466266895,-473.8330752,0.0002165,2]
[386714810,1758466266905,-500.0,0.0002165,2]
[386714811,1758466266915,-500.0,0.0002165,2]
[386714812,1758466266925,-500.0,0.0002165,2]
[386714813,1758466266935,-500.0,0.0002165,2]
[386714814,1758466266945,-500.0,0.0002165,2]
[386714815,1758466266954,-500.0,0.0002165,2]
[386714816,1758466266964,-2500.0,0.00021664,2]
[386714817,1758466266973,-2500.0,0.00021664,2]
[386714818,1758466266982,-2500.0,0.00021664,2]
[386714819,1758466266992,-2500.0,0.00021664,2]
[386714820,1758466267002,-4000.0,0.00021667,4]
[386714821,1758466267011,-500.0,0.00021714,2]
[386714822,1758466267021,-2519.0,0.00021737,2]
[386714823,1758466267030,-500.0,0.00021741,2]
[386714824,1758466267041,-500.0,0.00021741,2]
[386714825,1758466267050,-500.0,0.00021748,2]
[386714826,1758466267062,-500.0,0.00021748,2]
[386714827,1758466267072,-168.0,0.00021749,2]
[386714828,1758466267081,-356.0,0.00021765,2]
[386714829,1758466267091,-5000.0,0.00021778,2]
[386714830,1758466267100,-1000.0,0.00021798,2]
[386714831,1758466267110,-1400.0,0.00021808,2]
[386714832,1758466267119,-500.0,0.00021812,2]
[386714833,1758466267129,-1000.0,0.00021813,2]
[386714834,1758466267138,-1000.0,0.00021813,2]
[386714835,1758466267148,-1000.0,0.00021813,2]
[386714836,1758466267158,-500.0,0.00021813,2]
[386714837,1758466267167,-1000.0,0.00021813,2]
[386714838,1758466267176,-1000.0,0.00021813,2]
[386714839,1758466267186,-1071.88797371,0.00021813,2]
[386714840,1758466267195,-1000.0,0.00021813,2]
[386714841,1758466267204,-1000.0,0.00021813,2]
[386714842,1758466267214,-1000.0,0.00021813,2]
[386714843,1758466267224,-1000.0,0.00021813,2]
[386714844,1758466267234,-500.0,0.00021813,2]
[386714845,1758466267244,-503.11574864,0.00021813,2]
[386714846,1758466267253,-1000.0,0.00021813,2]
[386714847,1758466267263,-168.0,0.00021832,2]
[386714848,1758466267272,-1000.0,0.00021834,2]
[386714849,1758466267282,-1000.0,0.00021834,2]
[386714850,1758466267292,-1000.0,0.00021834,2]
[386714851,1758466267302,-1000.0,0.00021834,2]
[386714852,1758466267312,-1000.85599219,0.00021834,2]
[386714853,1758466267322,-1000.0,0.00021834,2]
[386714854,1758466267332,-1000.0,0.00021834,2]
[386714855,1758466267342,-1000.0,0.00021834,2]
[386714856,1758466267351,-500.0,0.00021834,2]
[386714857,1758466267361,-11012.99,0.00021873,2]
[386714858,1758466267372,-168.0,0.00021874,2]
[386714859,1758466267382,-394.95573862,0.00021881,2]
[386714860,1758466267392,-1012.91935127,0.00021881,2]
[386714861,1758466267401,-151.0,0.000219,3]
[386714862,1758466267410,-151.0,0.00021913,2]
[386714863,1758466267420,-198.0,0.00021913,2]
[386714864,1758466267430,-151.0,0.00021913,2]
[386714865,1758466267439,-500.0,0.00021913,2]
[386714866,1758466267449,-500.0,0.00021913,2]
[386714867,1758466267458,-500.0,0.00021913,2]
[386714868,1758466267468,-850.0,0.00021913,2]
[386714869,1758466267478,-262.15074362,0.00021913,2]
[386714870,1758466267487,-151.0,0.00021913,2]
[386714871,1758466267496,-151.0,0.00021913,2]
[386714872,1758466267505,-151.0,0.00021913,2]
[386714873,1758466267514,-482.17224029,0.00021913,2]
[386714874,1758466267524,-412.0013295,0.00021916,2]
[386714875,1758466267533,-480.0,0.00021917,2]
[386714876,1758466267542,-577.6,0.00021917,2]
[386714877,1758466267552,-480.0,0.00021917,2]
[386714878,1758466267561,-317.12158408,0.00021917,2]
[386714879,1758466267571,-480.0,0.00021917,2]
[386714880,1758466267581,-480.0,0.00021917,2]
[386714881,1758466267591,-480.0,0.00021917,2]
[386714882,1758466267600,-480.0,0.00021917,2]
[386714883,1758466267610,-480.0,0.00021917,2]
[386714884,1758466267619,-480.0,0.00021917,2]
[386714885,1758466267629,-480.0,0.00021917,2]
[386714886,1758466267638,-500.0,0.00021917,2]
[386714887,1758466267648,-500.0,0.00021917,2]
[386714888,1758466267657,-500.0,0.00021917,2]
[386714889,1758466267667,-500.0,0.00021917,2]
[386714890,1758466267676,-500.0,0.00021917,2]
[386714891,1758466267686,-500.0,0.00021917,2]
[386714892,1758466267696,-480.0,0.00021917,2]
[386714893,1758466267706,-480.0,0.00021917,2]
[386714894,1758466267717,-686.79,0.00021917,2]
[386714895,1758466267727,-480.0,0.00021917,2]
[386714896,1758466267737,-422.2247392,0.00021917,2]
[386714897,1758466267752,-10027.5852608,0.00021917,2]
[386714898,1758466267762,-480.0,0.00021917,2]
[386714899,1758466267771,-480.0,0.00021917,2]
[386714900,1758466267781,-480.0,0.00021917,2]
[386714901,1758466267791,-480.0,0.00021917,2]
[386714902,1758466267800,-647.89,0.00021917,2]
[386714903,1758466267810,-480.0,0.00021917,2]
[386714904,1758466267820,-1483.09,0.00021917,2]
[386714905,1758466267829,-480.0,0.00021917,2]
[386714906,1758466267839,-480.0,0.00021917,2]
[386714907,1758466267848,-480.0,0.00021917,2]
[386714908,1758466267858,-480.0,0.00021917,2]
[386714909,1758466267867,-2444.72,0.00021917,2]
[386714910,1758466267876,-480.0,0.00021917,2]
[386714911,1758466267886,-638.57,0.00021917,2]
[386714912,1758466267896,-1091.24,0.00021917,2]
[386714913,1758466267905,-701.35,0.00021917,2]
[386714914,1758466267915,-619.60783106,0.00021917,2]
[386714915,1758466267924,-480.0,0.00021917,2]
[386714916,1758466267934,-1064.36,0.00021917,2]
[386714917,1758466268031,-1229.11,0.00021917,2]
[386714918,1758466268046,-480.0,0.00021917,2]
[386714919,1758466268056,-170.61239118,0.00021917,2]
[386714920,1758466268079,-160.475979,0.00019726,2]
[386714921,1758466268089,-480.0,0.00021369,2]
[386714922,1758466268099,-431.58760882,0.00021917,2]
[386714923,1758466268109,-480.0,0.00021917,2]
[386714924,1758466268119,-1278.12,0.00021917,2]
[386714925,1758466268129,-54.17971541,0.00021917,2]
[386714926,1758466268270,-480.0,0.00019178,2]
[386714927,1758466268280,-480.0,0.00019452,2]
[386714928,1758466268290,-160.475979,0.00019452,2]
[386714929,1758466268300,-160.475979,0.00019452,2]
[386714930,1758466268310,-160.475979,0.00019452,2]
[386714931,1758466268319,-480.0,0.00019726,2]
[386714932,1758466268329,-160.475979,0.00019726,2]
[386714933,1758466268339,-160.475979,0.00019999,2]
[386714934,1758466268350,-160.475979,0.00019999,2]
[386714935,1758466268360,-160.475979,0.0002,2]
[386714936,1758466268370,-160.475979,0.0002,2]
[386714937,1758466268379,-480.0,0.00021643,2]
[386714938,1758466268389,-1063.29028459,0.00021917,2]
[386714939,1758466268399,-480.0,0.00021917,2]
[386714940,1758466268408,-290.90188341,0.00021917,2]
[386714941,1758466268420,-185.40305613,0.00021917,2]
[386714942,1758466268430,-480.0,0.00021917,2]
[386714943,1758466268440,-263.43454067,0.00021917,2]
[386714944,1758466268697,-480.0,0.00019178,2]
[386714945,1758466268707,-480.0,0.00019178,2]
[386714946,1758466268718,-480.0,0.00019178,2]
[386714947,1758466268728,-480.0,0.00019178,2]
[386714948,1758466268739,-480.0,0.00019178,2]
[386714949,1758466268748,-160.475979,0.00019452,2]
[386714950,1758466268758,-480.0,0.00019452,2]
[386714951,1758466268768,-160.475979,0.00019452,2]
[386714952,1758466268778,-480.0,0.00019726,2]
[386714953,1758466268788,-160.475979,0.00019726,2]
[386714954,1758466268798,-160.475979,0.00019999,2]
[386714955,1758466268808,-480.0,0.0002,2]
[386714956,1758466268818,-160.475979,0.0002,2]
[386714957,1758466268827,-480.0,0.00020273,2]
[386714958,1758466268837,-480.0,0.00020547,2]
[386714959,1758466268847,-480.0,0.00020821,2]
[386714960,1758466268856,-480.0,0.00021095,2]
[386714961,1758466268866,-480.0,0.00021369,2]
[386714962,1758466268875,-216.56545933,0.00021917,2]
[386714963,1758466268885,-480.0,0.00021917,2]
[386714964,1758466268894,-1075.36,0.00021917,2]
[386714965,1758466268904,-480.51,0.00021917,2]
[386714966,1758466268915,-480.0,0.00021917,2]
[386714967,1758466268924,-626.02041284,0.00021917,2]
[386714968,1758466268934,-480.0,0.00021917,2]
[386714969,1758466268944,-480.0,0.00021917,2]
[386714970,1758466268954,-480.0,0.00021917,2]
[386714971,1758466268965,-565.87,0.00021917,2]
[386714972,1758466268975,-486.79,0.00021917,2]
[386714973,1758466268985,-820.42,0.00021917,2]
[386714974,1758466268995,-746.0,0.00021917,2]
[386714975,1758466269004,-4203.45,0.00021917,2]
[386714976,1758466269014,-480.0,0.00021917,2]
[386714977,1758466269024,-480.0,0.00021917,2]
[386714978,1758466269034,-480.0,0.00021917,2]
[386714979,1758466269043,-480.0,0.00021917,2]
[386714980,1758466269054,-851.58,0.00021917,2]
[386714981,1758466269068,-480.0,0.00021917,2]
[386714982,1758466269078,-480.0,0.00021917,2]
[386714983,1758466269088,-480.0,0.00021917,2]
[386714984,1758466269098,-480.0,0.00021917,2]
[386714985,1758466269108,-537.74,0.00021917,2]
[386714986,1758466269117,-2698.71,0.00021917,2]
[386714987,1758466269127,-1022.71,0.00021917,2]
[386714988,1758466269138,-833.12,0.00021917,2]
[386714989,1758466269148,-480.0,0.00021917,2]
[386714990,1758466269157,-480.0,0.00021917,2]
[386714991,1758466269167,-764.67,0.00021917,2]
[386714992,1758466269177,-480.0,0.00021917,2]
[386714993,1758466269187,-1175.92,0.00021917,2]
[386714994,1758466269196,-480.0,0.00021917,2]
[386714995,1758466269206,-181.36342087,0.00021917,2]
[386715013,1758466306882,337.44765212,0.00018603,2]
[386715014,1758466307245,168.72382606,0.00018868,2]
[386715020,1758466408699,160.0,0.00018849,3]
[386715021,1758466490396,499.72982742,0.00019,7]
[386715027,1758466701702,500.0,0.00019,2]
[386715028,1758466713509,500.0,0.00019,2]
[386715029,1758466723579,182.0,0.00018849,3]
[386715030,1758466727024,500.0,0.00019,2]
[386715042,1758467037881,164.0,0.00018822,3]
[386715064,1758467204275,-186.97025419,0.00019078,2]
[386715065,1758467204296,-46.64617908,0.00019078,2]
[386715071,1758467351506,174.0,0.00018822,3]
[386715092,1758467432452,-3149.41444246,0.00019078,2]